[Event "*** Titled Tuesday Blitz"]
[Site "Chess.com"]
[Date "2021.03.09"]
[Round "6"]
[White "Tekushka"]
[Black "vovachesss"]
[Result "0-1"]
[WhiteElo "2452"]
[BlackElo "2692"]
[TimeControl "180+1"]
[EndTime "11:10:36 PST"]
[Termination "vovachesss won by checkmate"]

1. e4 {[%clk 0:02:08.1]} 1... e5 {[%clk 0:02:05.5]} 2. Nf3 {[%clk 0:02:07.6]}
2... d6 {[%clk 0:02:05.6]} 3. d4 {[%clk 0:02:07.2]} 3... Nd7 {[%clk 0:02:05.2]}
4. Bc4 {[%clk 0:01:59.8]} 4... c6 {[%clk 0:02:05.4]} 5. Nc3 {[%clk 0:01:39.3]}
5... Be7 {[%clk 0:02:05.1]} 6. dxe5 {[%clk 0:01:36.5]} 6... dxe5 {[%clk
0:02:05.1]} 7. Ng5 {[%clk 0:01:32.6]} 7... Bxg5 {[%clk 0:02:05.2]} 8. Qh5 {[%clk
0:01:32.6]} 8... Qe7 {[%clk 0:02:04.3]} 9. Qxg5 {[%clk 0:01:27.6]} 9... Ngf6
{[%clk 0:01:58.7]} 10. Be3 {[%clk 0:01:19.9]} 10... O-O {[%clk 0:01:57.2]} 11.
O-O {[%clk 0:01:10.8]} 11... b5 {[%clk 0:01:57.1]} 12. Bb3 {[%clk 0:01:07.7]}
12... Nc5 {[%clk 0:01:54.3]} 13. f3 {[%clk 0:01:05.5]} 13... a5 {[%clk
0:01:48.1]} 14. a4 {[%clk 0:01:01]} 14... Nxb3 {[%clk 0:01:47.6]} 15. cxb3
{[%clk 0:01:00.9]} 15... h6 {[%clk 0:01:39.8]} 16. Qh4 {[%clk 0:00:59.8]} 16...
Be6 {[%clk 0:01:06.8]} 17. axb5 {[%clk 0:00:57]} 17... cxb5 {[%clk 0:01:07.7]}
18. Nxb5 {[%clk 0:00:56.3]} 18... Bxb3 {[%clk 0:01:02.2]} 19. Nc3 {[%clk
0:00:52.5]} 19... Rfd8 {[%clk 0:00:59]} 20. Qf2 {[%clk 0:00:27.5]} 20... Rd3
{[%clk 0:00:55.6]} 21. Ne2 {[%clk 0:00:21]} 21... Qb4 {[%clk 0:00:50.4]} 22. Nc1
{[%clk 0:00:19.6]} 22... Rd7 {[%clk 0:00:43.3]} 23. Bc5 {[%clk 0:00:18.7]} 23...
Qb5 {[%clk 0:00:42.1]} 24. Nxb3 {[%clk 0:00:18]} 24... Qxb3 {[%clk 0:00:43]} 25.
Rfc1 {[%clk 0:00:17]} 25... a4 {[%clk 0:00:40]} 26. Rc3 {[%clk 0:00:15.7]} 26...
Qb5 {[%clk 0:00:40.3]} 27. Ba3 {[%clk 0:00:14.9]} 27... Rad8 {[%clk 0:00:40.2]}
28. h3 {[%clk 0:00:11.6]} 28... Rd2 {[%clk 0:00:39.6]} 29. Qe3 {[%clk
0:00:10.5]} 29... Nh5 {[%clk 0:00:39.1]} 30. Rc5 {[%clk 0:00:09.4]} 30... Qb6
{[%clk 0:00:35.4]} 31. Kh2 {[%clk 0:00:08.3]} 31... Nf4 {[%clk 0:00:30.2]} 32.
Rg1 {[%clk 0:00:08.2]} 32... Qe6 {[%clk 0:00:29.8]} 33. Kh1 {[%clk 0:00:06.9]}
33... Rxg2 {[%clk 0:00:18.9]} 34. Rgc1 {[%clk 0:00:03.3]} 34... Qxh3# {[%clk
0:00:18.7]} 0-1

[Event "*** Titled Tuesday Blitz"]
[Site "Chess.com"]
[Date "2021.03.09"]
[Round "6"]
[White "noblerone"]
[Black "juancruzarias"]
[Result "1/2-1/2"]
[WhiteElo "2394"]
[BlackElo "2558"]
[TimeControl "180+1"]
[EndTime "11:10:37 PST"]
[Termination "Game drawn by repetition"]

1. d4 {[%clk 0:03:00.9]} 1... e6 {[%clk 0:02:59.1]} 2. Nf3 {[%clk 0:03:01.1]}
2... f5 {[%clk 0:02:59.3]} 3. Bf4 {[%clk 0:02:59.4]} 3... Nf6 {[%clk 0:02:58.8]}
4. e3 {[%clk 0:02:58.7]} 4... Bd6 {[%clk 0:02:59.1]} 5. c3 {[%clk 0:02:56.1]}
5... b6 {[%clk 0:02:58.9]} 6. Nbd2 {[%clk 0:02:52.9]} 6... Bb7 {[%clk 0:02:55]}
7. Nc4 {[%clk 0:02:52]} 7... Bxf4 {[%clk 0:02:54]} 8. exf4 {[%clk 0:02:52.9]}
8... O-O {[%clk 0:02:54.1]} 9. g3 {[%clk 0:02:18.6]} 9... Nc6 {[%clk 0:02:46.8]}
10. Bg2 {[%clk 0:02:16.6]} 10... Ne7 {[%clk 0:02:45.9]} 11. O-O {[%clk
0:02:14.7]} 11... a5 {[%clk 0:02:41.9]} 12. Re1 {[%clk 0:02:11.8]} 12... Ned5
{[%clk 0:02:32.6]} 13. Ne3 {[%clk 0:01:56.1]} 13... a4 {[%clk 0:02:30.8]} 14.
Nxd5 {[%clk 0:01:47.6]} 14... Bxd5 {[%clk 0:02:31.7]} 15. Ne5 {[%clk 0:01:40.7]}
15... Bxg2 {[%clk 0:02:20.1]} 16. Kxg2 {[%clk 0:01:41.6]} 16... b5 {[%clk
0:02:10.7]} 17. a3 {[%clk 0:01:36.5]} 17... c6 {[%clk 0:02:04.1]} 18. Qd3 {[%clk
0:01:26.5]} 18... Nd5 {[%clk 0:02:03.6]} 19. Rad1 {[%clk 0:01:13.3]} 19... Ra7
{[%clk 0:01:56.5]} 20. Qf3 {[%clk 0:01:08.9]} 20... Qf6 {[%clk 0:01:51.1]} 21.
Nd3 {[%clk 0:01:00.9]} 21... Nb6 {[%clk 0:01:47.5]} 22. Re2 {[%clk 0:00:59.2]}
22... Nc4 {[%clk 0:01:47.3]} 23. Ne5 {[%clk 0:00:58.5]} 23... Nd6 {[%clk
0:01:42.3]} 24. Nd3 {[%clk 0:00:58.3]} 24... Ne4 {[%clk 0:01:40.3]} 25. Nc5
{[%clk 0:00:54.9]} 25... Nd6 {[%clk 0:01:30.4]} 26. Nd3 {[%clk 0:00:54.6]} 26...
h6 {[%clk 0:01:15.1]} 27. Rde1 {[%clk 0:00:51.8]} 27... g5 {[%clk 0:01:11.5]}
28. fxg5 {[%clk 0:00:47.3]} 28... hxg5 {[%clk 0:01:12.4]} 29. Nc5 {[%clk
0:00:45.3]} 29... Re8 {[%clk 0:00:57]} 30. h3 {[%clk 0:00:34.1]} 30... Nf7
{[%clk 0:00:48.5]} 31. Nd3 {[%clk 0:00:28.1]} 31... Re7 {[%clk 0:00:45.7]} 32.
Ne5 {[%clk 0:00:26.6]} 32... Ra8 {[%clk 0:00:41.4]} 33. Nxf7 {[%clk 0:00:26.5]}
33... Rxf7 {[%clk 0:00:40]} 34. Rh1 {[%clk 0:00:26.8]} 34... f4 {[%clk 0:00:33]}
35. g4 {[%clk 0:00:25.1]} 35... Rh7 {[%clk 0:00:30.8]} 36. Rhe1 {[%clk
0:00:24.9]} 36... Kg7 {[%clk 0:00:27.5]} 37. Re5 {[%clk 0:00:25.4]} 37... Rah8
{[%clk 0:00:20.7]} 38. Rh1 {[%clk 0:00:26]} 38... Rh6 {[%clk 0:00:20.7]} 39. Qe4
{[%clk 0:00:23.4]} 39... Rg6 {[%clk 0:00:21.1]} 40. Qf3 {[%clk 0:00:23.8]} 40...
Kh6 {[%clk 0:00:20.5]} 41. Ree1 {[%clk 0:00:23]} 41... Kg7 {[%clk 0:00:20.9]}
42. Re5 {[%clk 0:00:23.2]} 42... Rgh6 {[%clk 0:00:21.3]} 43. Ree1 {[%clk
0:00:23.3]} 43... Rg6 {[%clk 0:00:21.9]} 44. Re5 {[%clk 0:00:23.8]} 1/2-1/2

[Event "*** Titled Tuesday Blitz"]
[Site "Chess.com"]
[Date "2021.03.09"]
[Round "6"]
[White "K_A_S_T_O_R"]
[Black "ErikBlomqvist"]
[Result "1-0"]
[WhiteElo "2806"]
[BlackElo "2585"]
[TimeControl "180+1"]
[EndTime "11:10:38 PST"]
[Termination "K_A_S_T_O_R won on time"]

1. e4 {[%clk 0:03:00.9]} 1... c5 {[%clk 0:02:59.7]} 2. Nf3 {[%clk 0:03:00.3]}
2... e6 {[%clk 0:03:00.3]} 3. d4 {[%clk 0:02:59.8]} 3... cxd4 {[%clk 0:03:01.2]}
4. Nxd4 {[%clk 0:03:00.1]} 4... Nc6 {[%clk 0:03:01.8]} 5. Nb5 {[%clk 0:03:00.1]}
5... d6 {[%clk 0:03:01.2]} 6. c4 {[%clk 0:02:59.9]} 6... a6 {[%clk 0:03:01.2]}
7. N5c3 {[%clk 0:02:59.4]} 7... Nf6 {[%clk 0:02:59.9]} 8. Be2 {[%clk 0:02:59.9]}
8... Be7 {[%clk 0:02:58.9]} 9. O-O {[%clk 0:03:00.5]} 9... O-O {[%clk
0:02:57.5]} 10. Na3 {[%clk 0:03:01.1]} 10... b6 {[%clk 0:02:55.5]} 11. Be3
{[%clk 0:03:01.5]} 11... Bb7 {[%clk 0:02:55.1]} 12. Rc1 {[%clk 0:03:00.2]} 12...
Rc8 {[%clk 0:02:54.2]} 13. Qd2 {[%clk 0:02:59]} 13... Ne5 {[%clk 0:02:47.3]} 14.
f3 {[%clk 0:02:58.6]} 14... Qc7 {[%clk 0:02:38.6]} 15. Rfd1 {[%clk 0:02:57.3]}
15... Ned7 {[%clk 0:02:36.3]} 16. Kh1 {[%clk 0:02:57.2]} 16... Rfe8 {[%clk
0:02:35.7]} 17. Bf1 {[%clk 0:02:57.5]} 17... Qb8 {[%clk 0:02:30]} 18. Rc2 {[%clk
0:02:57]} 18... h5 {[%clk 0:02:26]} 19. Qf2 {[%clk 0:02:52]} 19... h4 {[%clk
0:02:16.3]} 20. Bxb6 {[%clk 0:02:37.1]} 20... Nxb6 {[%clk 0:02:08.3]} 21. Qxb6
{[%clk 0:02:36.7]} 21... h3 {[%clk 0:02:08.2]} 22. Qe3 {[%clk 0:02:29.8]} 22...
hxg2+ {[%clk 0:02:04.7]} 23. Rxg2 {[%clk 0:02:28.9]} 23... g6 {[%clk 0:01:50.6]}
24. Bd3 {[%clk 0:02:23.3]} 24... Bf8 {[%clk 0:01:47.4]} 25. Rdg1 {[%clk
0:02:12.2]} 25... Bg7 {[%clk 0:01:46.2]} 26. Nc2 {[%clk 0:02:07.5]} 26... Ba8
{[%clk 0:01:18.7]} 27. Nd4 {[%clk 0:02:03.2]} 27... Qb6 {[%clk 0:01:14.9]} 28.
Nce2 {[%clk 0:01:36]} 28... Qc5 {[%clk 0:00:51.8]} 29. Rg5 {[%clk 0:01:31]}
29... Qa7 {[%clk 0:00:38.8]} 30. b3 {[%clk 0:01:19.3]} 30... Rc7 {[%clk
0:00:17.6]} 31. Qd2 {[%clk 0:01:15.7]} 31... Nd7 {[%clk 0:00:13.9]} 32. Nc2
{[%clk 0:01:11.5]} 32... Ne5 {[%clk 0:00:13.9]} 33. Ne1 {[%clk 0:01:11.5]} 33...
d5 {[%clk 0:00:10]} 34. Qf4 {[%clk 0:00:54]} 34... Nxd3 {[%clk 0:00:06.4]} 35.
Nxd3 {[%clk 0:00:53.9]} 35... dxe4 {[%clk 0:00:06.1]} 36. fxe4 {[%clk
0:00:53.1]} 36... Rd7 {[%clk 0:00:03.9]} 37. Nf2 {[%clk 0:00:52.4]} 37... Red8
{[%clk 0:00:03.4]} 38. R5g2 {[%clk 0:00:47.8]} 38... Rd2 {[%clk 0:00:03.5]} 39.
Ng3 {[%clk 0:00:45.8]} 39... Qd4 {[%clk 0:00:02.7]} 40. Nh5 {[%clk 0:00:38.6]}
40... Be5 {[%clk 0:00:02.8]} 41. Qh4 {[%clk 0:00:35.7]} 1-0

[Event "*** Titled Tuesday Blitz"]
[Site "Chess.com"]
[Date "2021.03.09"]
[Round "6"]
[White "FredyMatsuura"]
[Black "northridgehawk"]
[Result "1-0"]
[WhiteElo "2212"]
[BlackElo "2324"]
[TimeControl "180+1"]
[EndTime "11:10:39 PST"]
[Termination "FredyMatsuura won by checkmate"]

1. d4 {[%clk 0:03:00.9]} 1... f5 {[%clk 0:02:54.7]} 2. e3 {[%clk 0:02:57.5]}
2... Nf6 {[%clk 0:02:53.7]} 3. Be2 {[%clk 0:02:57.1]} 3... g6 {[%clk 0:02:53.1]}
4. h4 {[%clk 0:02:57]} 4... Bg7 {[%clk 0:02:52.6]} 5. h5 {[%clk 0:02:51.5]} 5...
O-O {[%clk 0:02:49.9]} 6. hxg6 {[%clk 0:02:50.2]} 6... hxg6 {[%clk 0:02:50.8]}
7. Nh3 {[%clk 0:02:49.8]} 7... d6 {[%clk 0:02:43.5]} 8. Nf4 {[%clk 0:02:46.6]}
8... Qe8 {[%clk 0:02:42.3]} 9. Nc3 {[%clk 0:02:38]} 9... e5 {[%clk 0:02:41.8]}
10. dxe5 {[%clk 0:02:37.2]} 10... dxe5 {[%clk 0:02:42.7]} 11. Bc4+ {[%clk
0:02:35.9]} 11... Rf7 {[%clk 0:02:40.7]} 12. Bxf7+ {[%clk 0:02:16.6]} 12... Kxf7
{[%clk 0:02:41.6]} 13. Nfd5 {[%clk 0:02:15.5]} 13... Na6 {[%clk 0:02:38.1]} 14.
Nxf6 {[%clk 0:02:09.7]} 14... Bxf6 {[%clk 0:02:37.5]} 15. Qd5+ {[%clk
0:01:52.4]} 15... Qe6 {[%clk 0:02:34.8]} 16. Bd2 {[%clk 0:01:41.1]} 16... Nb4
{[%clk 0:02:27.2]} 17. Qxe6+ {[%clk 0:01:39.4]} 17... Bxe6 {[%clk 0:02:28.1]}
18. O-O-O {[%clk 0:01:39.2]} 18... c6 {[%clk 0:02:25.9]} 19. a3 {[%clk
0:01:38.3]} 19... Na6 {[%clk 0:02:24.1]} 20. e4 {[%clk 0:01:34.6]} 20... f4
{[%clk 0:02:22]} 21. g3 {[%clk 0:01:32]} 21... Bg4 {[%clk 0:02:13]} 22. Rh7+
{[%clk 0:01:24]} 22... Bg7 {[%clk 0:02:11.8]} 23. Rg1 {[%clk 0:01:13.9]} 23...
f3 {[%clk 0:02:10.9]} 24. Bh6 {[%clk 0:01:12.2]} 24... Rg8 {[%clk 0:02:10.1]}
25. Nd1 {[%clk 0:01:06.5]} 25... Nc5 {[%clk 0:02:05]} 26. Nc3 {[%clk 0:01:01.8]}
26... Ne6 {[%clk 0:02:04.2]} 27. Rd1 {[%clk 0:00:59.3]} 27... Nd4 {[%clk
0:02:03.2]} 28. Rxg7+ {[%clk 0:00:56.4]} 28... Rxg7 {[%clk 0:02:01]} 29. Bxg7
{[%clk 0:00:56.8]} 29... Kxg7 {[%clk 0:02:01.2]} 30. Rd3 {[%clk 0:00:56.6]}
30... b5 {[%clk 0:01:59.2]} 31. Kd2 {[%clk 0:00:55.9]} 31... Kf6 {[%clk
0:01:57.8]} 32. Nd1 {[%clk 0:00:55.7]} 32... Be6 {[%clk 0:01:55.2]} 33. c3
{[%clk 0:00:53.6]} 33... Nb3+ {[%clk 0:01:54.5]} 34. Kc2 {[%clk 0:00:53.2]}
34... Nc5 {[%clk 0:01:53.2]} 35. Rxf3+ {[%clk 0:00:53.3]} 35... Ke7 {[%clk
0:01:53.8]} 36. Re3 {[%clk 0:00:52.8]} 36... a5 {[%clk 0:01:51.5]} 37. b4 {[%clk
0:00:52.2]} 37... Nb7 {[%clk 0:01:48.3]} 38. f4 {[%clk 0:00:51.5]} 38... axb4
{[%clk 0:01:46.9]} 39. axb4 {[%clk 0:00:49.8]} 39... Nd6 {[%clk 0:01:46.8]} 40.
Re1 {[%clk 0:00:45.6]} 40... Nc4 {[%clk 0:01:46.2]} 41. Ne3 {[%clk 0:00:45]}
41... Nd6 {[%clk 0:01:45.3]} 42. Rh1 {[%clk 0:00:43.3]} 42... Nxe4 {[%clk
0:01:44.5]} 43. fxe5 {[%clk 0:00:43.3]} 43... Bf7 {[%clk 0:01:30.8]} 44. g4
{[%clk 0:00:39.3]} 44... Ke6 {[%clk 0:01:27.5]} 45. Rf1 {[%clk 0:00:34.8]} 45...
Ng5 {[%clk 0:01:23.3]} 46. Rf6+ {[%clk 0:00:33.4]} 46... Kxe5 {[%clk 0:01:18]}
47. Rxc6 {[%clk 0:00:32.9]} 47... Ne6 {[%clk 0:01:10.9]} 48. Rb6 {[%clk
0:00:28.2]} 48... Be8 {[%clk 0:01:10.8]} 49. c4 {[%clk 0:00:26.3]} 49... Kd4
{[%clk 0:01:06.4]} 50. Rxe6 {[%clk 0:00:23.5]} 50... Bd7 {[%clk 0:01:06.1]} 51.
Re7 {[%clk 0:00:23.1]} 51... Bc6 {[%clk 0:01:04.3]} 52. c5 {[%clk 0:00:22.9]}
52... Be4+ {[%clk 0:01:01.2]} 53. Kd2 {[%clk 0:00:22.7]} 53... Bb1 {[%clk
0:00:59.1]} 54. c6 {[%clk 0:00:21.6]} 54... g5 {[%clk 0:00:54.7]} 55. c7 {[%clk
0:00:21.3]} 55... Bf5 {[%clk 0:00:54.7]} 56. Nxf5+ {[%clk 0:00:20.3]} 56... Kc4
{[%clk 0:00:54.4]} 57. c8=Q+ {[%clk 0:00:19.6]} 57... Kxb4 {[%clk 0:00:55.3]}
58. Qc3+ {[%clk 0:00:19.5]} 58... Ka4 {[%clk 0:00:55.2]} 59. Ra7# {[%clk
0:00:20.1]} 1-0

[Event "*** Titled Tuesday Blitz"]
[Site "Chess.com"]
[Date "2021.03.09"]
[Round "6"]
[White "Lestofante90"]
[Black "NikolaN98"]
[Result "0-1"]
[WhiteElo "2717"]
[BlackElo "2529"]
[TimeControl "180+1"]
[EndTime "11:10:40 PST"]
[Termination "NikolaN98 won on time"]

1. Nf3 {[%clk 0:02:55.9]} 1... f5 {[%clk 0:02:59.1]} 2. g3 {[%clk 0:02:53.4]}
2... Nf6 {[%clk 0:02:58.8]} 3. Bg2 {[%clk 0:02:53.8]} 3... d6 {[%clk 0:02:57.8]}
4. d4 {[%clk 0:02:48.5]} 4... e6 {[%clk 0:02:57.2]} 5. O-O {[%clk 0:02:38.7]}
5... Be7 {[%clk 0:02:53.3]} 6. c4 {[%clk 0:02:38.3]} 6... O-O {[%clk 0:02:52.5]}
7. Nc3 {[%clk 0:02:38.9]} 7... a5 {[%clk 0:02:51.8]} 8. b3 {[%clk 0:02:25.7]}
8... Ne4 {[%clk 0:02:47.8]} 9. Bb2 {[%clk 0:02:25.6]} 9... Nxc3 {[%clk 0:02:45]}
10. Bxc3 {[%clk 0:02:26.5]} 10... Nd7 {[%clk 0:02:43.4]} 11. Qc2 {[%clk
0:02:18]} 11... Qe8 {[%clk 0:02:42.2]} 12. e4 {[%clk 0:02:15.6]} 12... f4 {[%clk
0:02:41.9]} 13. e5 {[%clk 0:02:15.5]} 13... dxe5 {[%clk 0:02:41.4]} 14. Rfe1
{[%clk 0:02:02.5]} 14... Bf6 {[%clk 0:02:17.7]} 15. Rad1 {[%clk 0:01:52.9]}
15... Qh5 {[%clk 0:01:53.9]} 16. d5 {[%clk 0:01:42.8]} 16... exd5 {[%clk
0:01:46]} 17. Rxd5 {[%clk 0:01:32.5]} 17... Nb6 {[%clk 0:01:38.4]} 18. Rc5
{[%clk 0:01:24.7]} 18... Bf5 {[%clk 0:01:33.7]} 19. Qc1 {[%clk 0:01:09.2]} 19...
Nd7 {[%clk 0:01:24.2]} 20. Rxc7 {[%clk 0:01:06.4]} 20... e4 {[%clk 0:01:24.2]}
21. Nd4 {[%clk 0:00:39]} 21... e3 {[%clk 0:01:18.6]} 22. Nxf5 {[%clk 0:00:35.7]}
22... exf2+ {[%clk 0:01:14.5]} 23. Kxf2 {[%clk 0:00:36.6]} 23... Qxf5 {[%clk
0:01:11.6]} 24. Kg1 {[%clk 0:00:26.8]} 24... fxg3 {[%clk 0:00:54.5]} 25. Rf1
{[%clk 0:00:08.4]} 25... Qh5 {[%clk 0:00:37]} 26. hxg3 {[%clk 0:00:06.7]} 26...
Ne5 {[%clk 0:00:32.8]} 27. Qe3 {[%clk 0:00:03.5]} 27... Ng4 {[%clk 0:00:32]} 28.
Qe6+ {[%clk 0:00:03.8]} 28... Kh8 {[%clk 0:00:32.4]} 29. Rxf6 {[%clk 0:00:04.2]}
29... Qh2+ {[%clk 0:00:23.1]} 30. Kf1 {[%clk 0:00:04.1]} 30... Nxf6 {[%clk
0:00:24]} 31. Bf3 {[%clk 0:00:03.2]} 31... Qxg3 {[%clk 0:00:22.6]} 32. Qf5
{[%clk 0:00:01.5]} 32... Nd7 {[%clk 0:00:15.5]} 0-1

[Event "*** Titled Tuesday Blitz"]
[Site "Chess.com"]
[Date "2021.03.09"]
[Round "6"]
[White "woodhy"]
[Black "Etud-otradnoe"]
[Result "1-0"]
[WhiteElo "2460"]
[BlackElo "2314"]
[TimeControl "180+1"]
[EndTime "11:10:40 PST"]
[Termination "woodhy won on time"]

1. e4 {[%clk 0:03:00.9]} 1... e6 {[%clk 0:02:59.5]} 2. d4 {[%clk 0:03:00.2]}
2... d5 {[%clk 0:02:58.9]} 3. e5 {[%clk 0:03:00.7]} 3... c5 {[%clk 0:02:58.1]}
4. c3 {[%clk 0:03:00.8]} 4... Qb6 {[%clk 0:02:58.1]} 5. Be3 {[%clk 0:03:01.4]}
5... Qxb2 {[%clk 0:02:53.6]} 6. Nd2 {[%clk 0:03:01.4]} 6... Qxc3 {[%clk
0:02:39.2]} 7. Rc1 {[%clk 0:02:35.4]} 7... Qa5 {[%clk 0:02:26.8]} 8. dxc5 {[%clk
0:02:33]} 8... Nd7 {[%clk 0:02:04.4]} 9. Nf3 {[%clk 0:02:27.4]} 9... Bxc5 {[%clk
0:01:54.8]} 10. Bd3 {[%clk 0:02:03.2]} 10... Bxe3 {[%clk 0:01:46.3]} 11. fxe3
{[%clk 0:02:04.1]} 11... Ne7 {[%clk 0:01:43]} 12. O-O {[%clk 0:02:03.7]} 12...
h6 {[%clk 0:01:42.5]} 13. Nb3 {[%clk 0:01:54.2]} 13... Qb6 {[%clk 0:01:33.6]}
14. Nbd4 {[%clk 0:01:49.7]} 14... Nc6 {[%clk 0:01:25.3]} 15. Bb1 {[%clk
0:01:19.3]} 15... Ndxe5 {[%clk 0:01:19.6]} 16. Nxe5 {[%clk 0:01:17.5]} 16...
Nxe5 {[%clk 0:01:19.4]} 17. Qh5 {[%clk 0:01:17.9]} 17... O-O {[%clk 0:00:32]}
18. Qxe5 {[%clk 0:01:14.7]} 18... Bd7 {[%clk 0:00:32]} 19. Qc7 {[%clk
0:01:05.5]} 19... Qxc7 {[%clk 0:00:24.9]} 20. Rxc7 {[%clk 0:01:06.4]} 20... Bc8
{[%clk 0:00:22.2]} 21. e4 {[%clk 0:00:54.4]} 21... e5 {[%clk 0:00:18.6]} 22. Nf3
{[%clk 0:00:54]} 22... dxe4 {[%clk 0:00:15.6]} 23. Nxe5 {[%clk 0:00:54]} 23...
f5 {[%clk 0:00:13.2]} 24. Bc2 {[%clk 0:00:50.7]} 24... Be6 {[%clk 0:00:12.9]}
25. Rxb7 {[%clk 0:00:50.1]} 25... Rfc8 {[%clk 0:00:11.5]} 26. Bb3 {[%clk
0:00:46.7]} 26... Bxb3 {[%clk 0:00:06.1]} 27. axb3 {[%clk 0:00:47.6]} 27... Rab8
{[%clk 0:00:05.3]} 28. Rxb8 {[%clk 0:00:28.6]} 28... Rxb8 {[%clk 0:00:05]} 29.
Rxf5 {[%clk 0:00:29.5]} 29... Rb5 {[%clk 0:00:04.2]} 30. Nc6 {[%clk 0:00:28]}
30... Rxb3 {[%clk 0:00:02.3]} 31. Nxa7 {[%clk 0:00:26.2]} 31... e3 {[%clk
0:00:02]} 32. Rf1 {[%clk 0:00:20.1]} 1-0

[Event "*** Titled Tuesday Blitz"]
[Site "Chess.com"]
[Date "2021.03.09"]
[Round "6"]
[White "Saxar85"]
[Black "TheCavemanChesss"]
[Result "1/2-1/2"]
[WhiteElo "2787"]
[BlackElo "2584"]
[TimeControl "180+1"]
[EndTime "11:10:42 PST"]
[Termination "Game drawn by repetition"]

1. e4 {[%clk 0:03:00.9]} 1... c5 {[%clk 0:02:58.3]} 2. Nf3 {[%clk 0:03:00.3]}
2... d6 {[%clk 0:02:58.6]} 3. Bb5+ {[%clk 0:02:59.1]} 3... Nd7 {[%clk
0:02:58.7]} 4. c3 {[%clk 0:02:52.7]} 4... Nf6 {[%clk 0:02:58.3]} 5. Bd3 {[%clk
0:02:52.1]} 5... g6 {[%clk 0:02:39.6]} 6. O-O {[%clk 0:02:50.8]} 6... Bg7 {[%clk
0:02:40.1]} 7. Bc2 {[%clk 0:02:50.3]} 7... O-O {[%clk 0:02:41]} 8. d4 {[%clk
0:02:49.9]} 8... Qc7 {[%clk 0:02:21.6]} 9. Re1 {[%clk 0:02:43.2]} 9... e5 {[%clk
0:02:14]} 10. dxe5 {[%clk 0:02:41.4]} 10... Nxe5 {[%clk 0:01:59.2]} 11. Nbd2
{[%clk 0:02:36.3]} 11... Bg4 {[%clk 0:01:42.6]} 12. h3 {[%clk 0:02:34.5]} 12...
Bh5 {[%clk 0:01:42.8]} 13. Qe2 {[%clk 0:02:26]} 13... Rfe8 {[%clk 0:01:39.9]}
14. g4 {[%clk 0:02:10.8]} 14... Nfxg4 {[%clk 0:01:26.3]} 15. hxg4 {[%clk
0:02:10.5]} 15... Nxg4 {[%clk 0:00:52.4]} 16. Qf1 {[%clk 0:02:09.8]} 16... d5
{[%clk 0:00:12.8]} 17. exd5 {[%clk 0:02:03]} 17... Rxe1 {[%clk 0:00:12.5]} 18.
Qxe1 {[%clk 0:02:02.8]} 18... Qd7 {[%clk 0:00:13.1]} 19. c4 {[%clk 0:01:40]}
19... Re8 {[%clk 0:00:12.6]} 20. Qf1 {[%clk 0:01:40.1]} 20... Qc7 {[%clk
0:00:11.7]} 21. Ne4 {[%clk 0:01:30.5]} 21... f5 {[%clk 0:00:11.7]} 22. Ng3
{[%clk 0:01:25.9]} 22... Bd4 {[%clk 0:00:11.5]} 23. Nxd4 {[%clk 0:01:22.8]}
23... cxd4 {[%clk 0:00:11.9]} 24. Bd2 {[%clk 0:01:08.2]} 24... Ne3 {[%clk
0:00:11.9]} 25. Bxe3 {[%clk 0:01:02.6]} 25... dxe3 {[%clk 0:00:12.1]} 26. Nxh5
{[%clk 0:00:56.6]} 26... e2 {[%clk 0:00:12.4]} 27. Nf6+ {[%clk 0:00:48.7]} 27...
Kf7 {[%clk 0:00:12.6]} 28. Qe1 {[%clk 0:00:37.9]} 28... Kxf6 {[%clk 0:00:13]}
29. Qc3+ {[%clk 0:00:37.7]} 29... Kf7 {[%clk 0:00:13.4]} 30. Re1 {[%clk
0:00:35.7]} 30... Qf4 {[%clk 0:00:13.4]} 31. c5 {[%clk 0:00:28.8]} 31... Qg5+
{[%clk 0:00:11.2]} 32. Qg3 {[%clk 0:00:19.5]} 32... Qd2 {[%clk 0:00:11.2]} 33.
Qc3 {[%clk 0:00:19.3]} 33... Qg5+ {[%clk 0:00:10.6]} 34. Kh2 {[%clk 0:00:17.6]}
34... Qf4+ {[%clk 0:00:09.6]} 35. Kg2 {[%clk 0:00:17.8]} 35... Qg5+ {[%clk
0:00:09.8]} 36. Kh2 {[%clk 0:00:12.1]} 36... Qf4+ {[%clk 0:00:10]} 37. Kg2
{[%clk 0:00:10.6]} 37... Qg5+ {[%clk 0:00:10.3]} 38. Kh2 {[%clk 0:00:09.8]}
1/2-1/2

[Event "*** Titled Tuesday Blitz"]
[Site "Chess.com"]
[Date "2021.03.09"]
[Round "6"]
[White "ural58"]
[Black "ShimanovAlex"]
[Result "0-1"]
[WhiteElo "2572"]
[BlackElo "2795"]
[TimeControl "180+1"]
[EndTime "11:10:43 PST"]
[Termination "ShimanovAlex won on time"]

1. e4 {[%clk 0:03:00.9]} 1... d5 {[%clk 0:02:57.1]} 2. exd5 {[%clk 0:03:00.1]}
2... Qxd5 {[%clk 0:02:58]} 3. Nc3 {[%clk 0:03:00]} 3... Qa5 {[%clk 0:02:58]} 4.
b4 {[%clk 0:03:00.2]} 4... Qxb4 {[%clk 0:02:55.7]} 5. Rb1 {[%clk 0:03:00.4]}
5... Qd6 {[%clk 0:02:50.2]} 6. Nf3 {[%clk 0:03:00.3]} 6... c6 {[%clk 0:02:50.1]}
7. d4 {[%clk 0:02:59.3]} 7... Nf6 {[%clk 0:02:49.6]} 8. Bc4 {[%clk 0:02:57.3]}
8... e6 {[%clk 0:02:45.9]} 9. O-O {[%clk 0:02:45.7]} 9... Be7 {[%clk 0:02:45.7]}
10. Ne5 {[%clk 0:02:45.2]} 10... O-O {[%clk 0:02:44.9]} 11. Bf4 {[%clk 0:02:45]}
11... Qd8 {[%clk 0:02:45.3]} 12. Qf3 {[%clk 0:02:38.7]} 12... Nbd7 {[%clk
0:02:43.3]} 13. Bd3 {[%clk 0:02:14.7]} 13... Nd5 {[%clk 0:02:36.2]} 14. Ne4
{[%clk 0:01:46.1]} 14... f5 {[%clk 0:02:31.2]} 15. Nxd7 {[%clk 0:01:13.9]} 15...
Bxd7 {[%clk 0:02:09]} 16. Nd6 {[%clk 0:00:46]} 16... b5 {[%clk 0:02:01.9]} 17.
Be5 {[%clk 0:00:45.4]} 17... Be8 {[%clk 0:01:55.5]} 18. Qg3 {[%clk 0:00:43.1]}
18... Nf6 {[%clk 0:01:49.8]} 19. Nb7 {[%clk 0:00:24.6]} 19... Qc8 {[%clk
0:01:49.4]} 20. Nc5 {[%clk 0:00:23.5]} 20... Bg6 {[%clk 0:01:47.3]} 21. c4
{[%clk 0:00:22.5]} 21... a6 {[%clk 0:01:45]} 22. a4 {[%clk 0:00:21.6]} 22...
bxa4 {[%clk 0:01:36.7]} 23. Ra1 {[%clk 0:00:19.4]} 23... Nd7 {[%clk 0:01:33.1]}
24. Nxd7 {[%clk 0:00:18.6]} 24... Qxd7 {[%clk 0:01:34]} 25. c5 {[%clk
0:00:17.3]} 25... Bxc5 {[%clk 0:01:14.4]} 26. dxc5 {[%clk 0:00:13.5]} 26... f4
{[%clk 0:01:14.8]} 27. Bxf4 {[%clk 0:00:12.3]} 27... Qxd3 {[%clk 0:01:15]} 28.
Bd6 {[%clk 0:00:07.6]} 28... Rfe8 {[%clk 0:00:58.5]} 29. Qe5 {[%clk 0:00:06.8]}
29... a3 {[%clk 0:00:51.7]} 30. Rfd1 {[%clk 0:00:05.9]} 30... Qb3 {[%clk
0:00:51.8]} 31. Rdc1 {[%clk 0:00:04.9]} 31... a2 {[%clk 0:00:50.9]} 32. Qe2
{[%clk 0:00:04.5]} 32... Bb1 {[%clk 0:00:50.2]} 33. Be5 {[%clk 0:00:04.1]} 33...
Ra7 {[%clk 0:00:49.5]} 34. Bb2 {[%clk 0:00:03.2]} 34... Rb7 {[%clk 0:00:47.5]}
35. Bc3 {[%clk 0:00:01.6]} 35... Rd8 {[%clk 0:00:45.9]} 36. Qe5 {[%clk
0:00:01.9]} 36... Rd1+ {[%clk 0:00:44.5]} 37. Rxd1 {[%clk 0:00:01.8]} 37...
Qxd1+ {[%clk 0:00:45.4]} 38. Be1 {[%clk 0:00:02.4]} 38... Qd5 {[%clk 0:00:42.2]}
39. Qe3 {[%clk 0:00:02]} 39... h6 {[%clk 0:00:41.3]} 40. h3 {[%clk 0:00:02.1]}
40... Rb3 {[%clk 0:00:40.2]} 41. Qe2 {[%clk 0:00:01.6]} 41... Rd3 {[%clk
0:00:34.4]} 0-1